[Event "Titled Tuesday Blitz July 18 Late 2023"]
[White "Ricaurte Lopez, Juan Carlos"]
[Black "Kanyamarala, Trisha"]
[WhiteFideId "3600327"]
[BlackFideId "45004722"]
[WhiteElo "2144"]
[BlackElo "2354"]
[Result "0-1"]
[Round "3"]
[TimeControl "180+2"]
[Date "2023.07.18"]
[WhiteClock "0:00:00"]
[BlackClock "0:00:10"]
[Board "153"]

1. e4 {[%clk 0:02:58]}  c5 {[%clk 0:02:58]} 2. Nf3 {[%clk 0:02:53]}  d6 {[%clk 0:02:55]} 3. d4 {[%clk 0:02:54]}  cxd4 {[%clk 0:02:51]} 4. Nxd4 {[%clk 0:02:54]}  Nf6 {[%clk 0:02:50]} 5. Nc3 {[%clk 0:02:53]}  a6 {[%clk 0:02:50]} 6. f4 {[%clk 0:02:49]}  Nc6 {[%clk 0:02:45]} 7. Nf3 {[%clk 0:02:45]}  g6 {[%clk 0:02:38]} 8. Bc4 {[%clk 0:02:41]}  Bg7 {[%clk 0:02:31]} 9. e5 {[%clk 0:02:38]}  dxe5 {[%clk 0:02:19]} 10. Qxd8+ {[%clk 0:02:34]}  Nxd8 {[%clk 0:02:13]} 11. Nxe5 {[%clk 0:02:33]}  O-O {[%clk 0:02:12]} 12. Be3 {[%clk 0:02:24]}  Be6 {[%clk 0:02:08]} 13. O-O-O {[%clk 0:02:13]}  Bxc4 {[%clk 0:01:57]} 14. Nxc4 {[%clk 0:02:12]}  b5 {[%clk 0:01:55]} 15. Ne5 {[%clk 0:02:04]}  Nb7 {[%clk 0:01:50]} 16. h3 {[%clk 0:01:41]}  Rfd8 {[%clk 0:01:41]} 17. Bb6 {[%clk 0:01:36]}  Rd6 {[%clk 0:01:39]} 18. Bc7 {[%clk 0:01:20]}  Rxd1+ {[%clk 0:01:33]} 19. Rxd1 {[%clk 0:01:20]}  Rc8 {[%clk 0:01:32]} 20. Bb6 {[%clk 0:01:18]}  Nd6 {[%clk 0:01:30]} 21. g4 {[%clk 0:01:03]}  b4 {[%clk 0:01:25]} 22. Nd5 {[%clk 0:01:00]}  Nxd5 {[%clk 0:01:21]} 23. Rxd5 {[%clk 0:01:00]}  f6 {[%clk 0:01:18]} 24. Nf3 {[%clk 0:00:48]}  Rc4 {[%clk 0:01:16]} 25. Bc5 {[%clk 0:00:40]}  Rxf4 {[%clk 0:01:14]} 26. Bxd6 {[%clk 0:00:39]}  exd6 {[%clk 0:01:09]} 27. Nd4 {[%clk 0:00:39]}  Bh6 {[%clk 0:01:05]} 28. Kd1 {[%clk 0:00:35]}  Rf1+ {[%clk 0:01:04]} 29. Ke2 {[%clk 0:00:34]}  Rh1 {[%clk 0:01:03]} 30. Rxd6 {[%clk 0:00:33]}  Rh2+ {[%clk 0:01:03]} 31. Kd3 {[%clk 0:00:31]}  Rxh3+ {[%clk 0:00:59]} 32. Kc4 {[%clk 0:00:31]}  a5 {[%clk 0:00:51]} 33. Rxf6 {[%clk 0:00:28]}  Rh4 {[%clk 0:00:46]} 34. Ra6 {[%clk 0:00:22]}  Rxg4 {[%clk 0:00:46]} 35. Rxa5 {[%clk 0:00:20]}  Bg7 {[%clk 0:00:45]} 36. c3 {[%clk 0:00:19]}  h5 {[%clk 0:00:42]} 37. Kxb4 {[%clk 0:00:17]}  Bxd4 {[%clk 0:00:40]} 38. cxd4 {[%clk 0:00:15]}  Rxd4+ {[%clk 0:00:40]} 39. Kc5 {[%clk 0:00:14]}  Rf4 {[%clk 0:00:35]} 40. b4 {[%clk 0:00:14]}  h4 {[%clk 0:00:26]} 41. b5 {[%clk 0:00:12]}  h3 {[%clk 0:00:26]} 42. Ra3 {[%clk 0:00:11]}  Rh4 {[%clk 0:00:22]} 43. b6 {[%clk 0:00:08]}  Kf7 {[%clk 0:00:16]} 44. b7 {[%clk 0:00:08]}  Rh8 {[%clk 0:00:14]} 45. Ra8 {[%clk 0:00:06]}  Rh5+ {[%clk 0:00:14]} 46. Kc4 {[%clk 0:00:03]}  Rh4+ {[%clk 0:00:13]} 47. Kc3 {[%clk 0:00:04]}  h2 {[%clk 0:00:13]} 48. b8=Q {[%clk 0:00:02]}  h1=Q {[%clk 0:00:13]} 49. Qf8+ {[%clk 0:00:02]}  Ke6 {[%clk 0:00:12]} 50. Re8+ {[%clk 0:00:01]}  Kd5 {[%clk 0:00:11]} 51. Qf6 {[%clk 0:00:00]}  Qa1+ {[%clk 0:00:10]} 0-1


[Site "https://www.chess.com"]

[Event "Titled Tuesday Blitz July 18 Late 2023"]
[White "KhalilMousavi98"]
[Black "Dubreuil, Julien"]
[BlackFideId "621285"]
[WhiteElo "2805"]
[BlackElo "2333"]
[Result "1-0"]
[Round "3"]
[TimeControl "180+2"]
[Date "2023.07.18"]
[WhiteClock "0:01:03"]
[BlackClock "0:00:18"]
[Board "154"]

1. e4 {[%clk 0:02:58]}  c5 {[%clk 0:02:59]} 2. Nf3 {[%clk 0:02:52]}  Nc6 {[%clk 0:02:59]} 3. d4 {[%clk 0:02:51]}  cxd4 {[%clk 0:03:00]} 4. Nxd4 {[%clk 0:02:52]}  g6 {[%clk 0:03:00]} 5. c4 {[%clk 0:02:50]}  Bg7 {[%clk 0:03:00]} 6. Be3 {[%clk 0:02:50]}  Nf6 {[%clk 0:03:01]} 7. Nc3 {[%clk 0:02:47]}  O-O {[%clk 0:03:01]} 8. f3 {[%clk 0:02:43]}  Qb6 {[%clk 0:02:53]} 9. Qb3 {[%clk 0:02:18]}  Nxd4 {[%clk 0:02:51]} 10. Qxb6 {[%clk 0:02:17]}  Nxf3+ {[%clk 0:02:33]} 11. gxf3 {[%clk 0:02:18]}  axb6 {[%clk 0:02:33]} 12. Bxb6 {[%clk 0:02:17]}  Nh5 {[%clk 0:02:25]} 13. Kd2 {[%clk 0:02:14]}  f5 {[%clk 0:02:19]} 14. Bd3 {[%clk 0:02:01]}  Nf4 {[%clk 0:02:13]} 15. Bc2 {[%clk 0:01:56]}  fxe4 {[%clk 0:02:08]} 16. Bxe4 {[%clk 0:01:53]}  e6 {[%clk 0:02:01]} 17. c5 {[%clk 0:01:48]}  Nh3 {[%clk 0:01:44]} 18. Kc2 {[%clk 0:01:37]}  Ng5 {[%clk 0:01:35]} 19. Rhf1 {[%clk 0:01:29]}  Rf4 {[%clk 0:01:26]} 20. Bc7 {[%clk 0:01:22]}  Rh4 {[%clk 0:01:26]} 21. Bg3 {[%clk 0:01:21]}  Rh5 {[%clk 0:01:24]} 22. b4 {[%clk 0:01:15]}  Ra3 {[%clk 0:01:17]} 23. Nb5 {[%clk 0:01:12]}  Nxe4 {[%clk 0:01:00]} 24. fxe4 {[%clk 0:01:05]}  Rxg3 {[%clk 0:01:00]} 25. hxg3 {[%clk 0:01:04]}  Bxa1 {[%clk 0:00:57]} 26. Rxa1 {[%clk 0:01:05]}  b6 {[%clk 0:00:57]} 27. Nd6 {[%clk 0:01:03]}  Ba6 {[%clk 0:00:18]} 28. cxb6 {[%clk 0:01:03]} 1-0


[Site "https://www.chess.com"]

[Event "Titled Tuesday Blitz July 18 Late 2023"]
[White "Troff, Kayden"]
[Black "Kujawski, Adam"]
[WhiteFideId "2047896"]
[BlackFideId "1100920"]
[WhiteElo "2796"]
[BlackElo "2328"]
[Result "0-1"]
[Round "3"]
[TimeControl "180+2"]
[Date "2023.07.18"]
[WhiteClock "0:00:00"]
[BlackClock "0:00:05"]
[Board "155"]

1. a3 {[%clk 0:03:00]}  e5 {[%clk 0:02:59]} 2. c4 {[%clk 0:02:59]}  Nf6 {[%clk 0:02:58]} 3. g3 {[%clk 0:02:59]}  c6 {[%clk 0:02:54]} 4. Bg2 {[%clk 0:02:58]}  d5 {[%clk 0:02:54]} 5. cxd5 {[%clk 0:02:58]}  cxd5 {[%clk 0:02:54]} 6. d4 {[%clk 0:02:57]}  e4 {[%clk 0:02:44]} 7. Nc3 {[%clk 0:02:56]}  a6 {[%clk 0:02:30]} 8. Nh3 {[%clk 0:02:48]}  Bxh3 {[%clk 0:02:20]} 9. Bxh3 {[%clk 0:02:48]}  Nc6 {[%clk 0:02:20]} 10. O-O {[%clk 0:02:45]}  Be7 {[%clk 0:02:08]} 11. Bg2 {[%clk 0:02:40]}  Qb6 {[%clk 0:02:01]} 12. Be3 {[%clk 0:02:32]}  Qxb2 {[%clk 0:01:50]} 13. Na4 {[%clk 0:02:27]}  Qb5 {[%clk 0:01:42]} 14. Rb1 {[%clk 0:02:21]}  Qa5 {[%clk 0:01:41]} 15. Rxb7 {[%clk 0:01:57]}  O-O {[%clk 0:01:38]} 16. Bf4 {[%clk 0:01:47]}  Rfc8 {[%clk 0:01:01]} 17. Bh3 {[%clk 0:01:46]}  Bxa3 {[%clk 0:00:50]} 18. Bxc8 {[%clk 0:01:43]}  Rxc8 {[%clk 0:00:50]} 19. Qb3 {[%clk 0:01:32]}  Bf8 {[%clk 0:00:21]} 20. e3 {[%clk 0:01:08]}  Nb4 {[%clk 0:00:11]} 21. Nb6 {[%clk 0:01:01]}  Re8 {[%clk 0:00:03]} 22. Nd7 {[%clk 0:00:40]}  Nxd7 {[%clk 0:00:02]} 23. Rxd7 {[%clk 0:00:41]}  Qb5 {[%clk 0:00:01]} 24. Rc7 {[%clk 0:00:37]}  h6 {[%clk 0:00:01]} 25. Rfc1 {[%clk 0:00:33]}  g5 {[%clk 0:00:01]} 26. Be5 {[%clk 0:00:33]}  Nd3 {[%clk 0:00:01]} 27. Qxb5 {[%clk 0:00:28]}  axb5 {[%clk 0:00:02]} 28. Rc8 {[%clk 0:00:29]}  Nxe5 {[%clk 0:00:03]} 29. Rxe8 {[%clk 0:00:28]}  Nf3+ {[%clk 0:00:04]} 30. Kg2 {[%clk 0:00:28]}  Kg7 {[%clk 0:00:04]} 31. Rcc8 {[%clk 0:00:27]}  Ba3 {[%clk 0:00:04]} 32. Rg8+ {[%clk 0:00:25]}  Kf6 {[%clk 0:00:04]} 33. Rb8 {[%clk 0:00:25]}  b4 {[%clk 0:00:04]} 34. Rb6+ {[%clk 0:00:25]}  Ke7 {[%clk 0:00:04]} 35. Rxh6 {[%clk 0:00:23]}  Nd2 {[%clk 0:00:04]} 36. Rb6 {[%clk 0:00:22]}  b3 {[%clk 0:00:04]} 37. Rgb8 {[%clk 0:00:22]}  b2 {[%clk 0:00:04]} 38. Rxb2 {[%clk 0:00:21]}  Bxb2 {[%clk 0:00:04]} 39. Rxb2 {[%clk 0:00:21]}  Nc4 {[%clk 0:00:05]} 40. Rb5 {[%clk 0:00:00]}  Ke6 {[%clk 0:00:05]} 0-1


[Site "https://www.chess.com"]

[Event "Titled Tuesday Blitz July 18 Late 2023"]
[White "Arias Igual, Alejandro"]
[Black "Lewicki, Miroslaw"]
[WhiteFideId "2254905"]
[BlackFideId "1113380"]
[WhiteElo "2317"]
[BlackElo "2640"]
[Result "0-1"]
[Round "3"]
[TimeControl "180+2"]
[Date "2023.07.18"]
[WhiteClock "0:01:14"]
[BlackClock "0:02:19"]
[Board "157"]

1. e4 {[%clk 0:03:00]}  f6 {[%clk 0:03:00]} 2. d4 {[%clk 0:02:58]}  Kf7 {[%clk 0:03:01]} 3. Nf3 {[%clk 0:02:57]}  g6 {[%clk 0:03:01]} 4. Bc4+ {[%clk 0:02:54]}  Kg7 {[%clk 0:03:00]} 5. O-O {[%clk 0:02:50]}  b6 {[%clk 0:02:59]} 6. Qe2 {[%clk 0:02:47]}  Bb7 {[%clk 0:03:00]} 7. Bf4 {[%clk 0:02:37]}  e6 {[%clk 0:02:54]} 8. Bb3 {[%clk 0:02:35]}  Nc6 {[%clk 0:02:52]} 9. c3 {[%clk 0:02:34]}  g5 {[%clk 0:02:50]} 10. Bg3 {[%clk 0:02:27]}  h5 {[%clk 0:02:49]} 11. h4 {[%clk 0:02:26]}  g4 {[%clk 0:02:49]} 12. Nh2 {[%clk 0:02:22]}  Nh6 {[%clk 0:02:47]} 13. Nd2 {[%clk 0:02:20]}  Be7 {[%clk 0:02:46]} 14. f3 {[%clk 0:02:05]}  f5 {[%clk 0:02:45]} 15. Qf2 {[%clk 0:01:43]}  Rf8 {[%clk 0:02:31]} 16. Bc2 {[%clk 0:01:34]}  f4 {[%clk 0:02:27]} 17. e5 {[%clk 0:01:28]}  Nxe5 {[%clk 0:02:23]} 18. Bxf4 {[%clk 0:01:22]}  Rxf4 {[%clk 0:02:20]} 19. dxe5 {[%clk 0:01:14]}  Bc5 {[%clk 0:02:19]} 0-1


[Site "https://www.chess.com"]

[Event "Titled Tuesday Blitz July 18 Late 2023"]
[White "Ncatt"]
[Black "Lewtak, Damian"]
[BlackFideId "1141724"]
[WhiteElo "2317"]
[BlackElo "2609"]
[Result "0-1"]
[Round "3"]
[TimeControl "180+2"]
[Date "2023.07.18"]
[WhiteClock "0:00:00"]
[BlackClock "0:00:07"]
[Board "158"]

1. e4 {[%clk 0:03:00]}  a6 {[%clk 0:03:00]} 2. d4 {[%clk 0:03:00]}  e6 {[%clk 0:03:01]} 3. Nc3 {[%clk 0:03:00]}  b6 {[%clk 0:03:01]} 4. f4 {[%clk 0:03:00]}  Bb7 {[%clk 0:03:02]} 5. Nf3 {[%clk 0:02:59]}  Bb4 {[%clk 0:03:02]} 6. Bd3 {[%clk 0:02:58]}  Nf6 {[%clk 0:03:03]} 7. Qe2 {[%clk 0:02:57]}  d5 {[%clk 0:03:03]} 8. e5 {[%clk 0:02:56]}  Ne4 {[%clk 0:03:04]} 9. Bd2 {[%clk 0:02:56]}  Nxd2 {[%clk 0:03:03]} 10. Qxd2 {[%clk 0:02:54]}  c5 {[%clk 0:03:03]} 11. a3 {[%clk 0:02:49]}  Ba5 {[%clk 0:02:59]} 12. O-O {[%clk 0:02:41]}  Nc6 {[%clk 0:02:59]} 13. Qf2 {[%clk 0:02:39]}  cxd4 {[%clk 0:02:54]} 14. Ne2 {[%clk 0:02:38]}  b5 {[%clk 0:02:40]} 15. Nfxd4 {[%clk 0:02:34]}  Nxd4 {[%clk 0:02:39]} 16. Nxd4 {[%clk 0:02:32]}  g6 {[%clk 0:02:38]} 17. c3 {[%clk 0:02:25]}  Bb6 {[%clk 0:02:38]} 18. a4 {[%clk 0:02:07]}  bxa4 {[%clk 0:02:34]} 19. Rxa4 {[%clk 0:02:07]}  O-O {[%clk 0:02:32]} 20. Rfa1 {[%clk 0:02:07]}  a5 {[%clk 0:02:31]} 21. Qc2 {[%clk 0:01:48]}  Qh4 {[%clk 0:02:22]} 22. Qf2 {[%clk 0:01:46]}  Qe7 {[%clk 0:02:17]} 23. Kh1 {[%clk 0:01:43]}  f6 {[%clk 0:02:15]} 24. Qe3 {[%clk 0:01:32]}  Rae8 {[%clk 0:02:06]} 25. Bb5 {[%clk 0:01:27]}  fxe5 {[%clk 0:01:44]} 26. Qxe5 {[%clk 0:01:26]}  Bc7 {[%clk 0:01:44]} 27. Qe2 {[%clk 0:01:19]}  Bxf4 {[%clk 0:01:21]} 28. Bxe8 {[%clk 0:01:17]}  Rxe8 {[%clk 0:01:21]} 29. Qxe6+ {[%clk 0:01:12]}  Qxe6 {[%clk 0:01:16]} 30. Nxe6 {[%clk 0:01:12]}  Bd6 {[%clk 0:01:04]} 31. Nd4 {[%clk 0:01:12]}  Bc7 {[%clk 0:01:04]} 32. b4 {[%clk 0:01:04]}  axb4 {[%clk 0:01:01]} 33. Rxb4 {[%clk 0:01:04]}  Bc8 {[%clk 0:01:01]} 34. g3 {[%clk 0:00:50]}  Bh3 {[%clk 0:00:59]} 35. Nf3 {[%clk 0:00:44]}  Bd6 {[%clk 0:00:48]} 36. Rh4 {[%clk 0:00:41]}  Bf5 {[%clk 0:00:45]} 37. Re1 {[%clk 0:00:33]}  Be4 {[%clk 0:00:40]} 38. Kg1 {[%clk 0:00:33]}  Rc8 {[%clk 0:00:28]} 39. Ng5 {[%clk 0:00:23]}  Bc5+ {[%clk 0:00:22]} 40. Kf1 {[%clk 0:00:23]}  Be7 {[%clk 0:00:18]} 41. Rhxe4 {[%clk 0:00:18]}  dxe4 {[%clk 0:00:17]} 42. Nxe4 {[%clk 0:00:19]}  Ra8 {[%clk 0:00:15]} 43. Ke2 {[%clk 0:00:18]}  Ra2+ {[%clk 0:00:14]} 44. Nd2 {[%clk 0:00:17]}  Bg5 {[%clk 0:00:14]} 45. Rd1 {[%clk 0:00:17]}  h5 {[%clk 0:00:13]} 46. Kd3 {[%clk 0:00:17]}  Be7 {[%clk 0:00:12]} 47. h3 {[%clk 0:00:15]}  Kf7 {[%clk 0:00:11]} 48. Ne4 {[%clk 0:00:15]}  Rh2 {[%clk 0:00:09]} 49. h4 {[%clk 0:00:15]}  Ke6 {[%clk 0:00:09]} 50. Kd4 {[%clk 0:00:13]}  Re2 {[%clk 0:00:07]} 51. c4 {[%clk 0:00:12]}  Bf8 {[%clk 0:00:04]} 52. c5 {[%clk 0:00:12]}  Bg7+ {[%clk 0:00:04]} 53. Kd3 {[%clk 0:00:13]}  Ra2 {[%clk 0:00:04]} 54. Rc1 {[%clk 0:00:13]}  Ra3+ {[%clk 0:00:04]} 55. Kc4 {[%clk 0:00:12]}  Ra4+ {[%clk 0:00:04]} 56. Kd3 {[%clk 0:00:12]}  Ra3+ {[%clk 0:00:04]} 57. Ke2 {[%clk 0:00:11]}  Be5 {[%clk 0:00:04]} 58. c6 {[%clk 0:00:10]}  Bc7 {[%clk 0:00:04]} 59. Ng5+ {[%clk 0:00:08]}  Kd5 {[%clk 0:00:05]} 60. Nf3 {[%clk 0:00:07]}  Ra2+ {[%clk 0:00:05]} 61. Ke3 {[%clk 0:00:06]}  Ra3+ {[%clk 0:00:06]} 62. Kf2 {[%clk 0:00:05]}  Ra2+ {[%clk 0:00:06]} 63. Ke3 {[%clk 0:00:05]}  Rg2 {[%clk 0:00:06]} 64. Ne1 {[%clk 0:00:02]}  Rxg3+ {[%clk 0:00:06]} 65. Kf2 {[%clk 0:00:03]}  Rh3 {[%clk 0:00:05]} 66. Nf3 {[%clk 0:00:02]}  Bb6+ {[%clk 0:00:04]} 67. Kg2 {[%clk 0:00:02]}  Rxf3 {[%clk 0:00:04]} 68. Kxf3 {[%clk 0:00:02]}  Bc7 {[%clk 0:00:04]} 69. Rc2 {[%clk 0:00:03]}  Kd6 {[%clk 0:00:05]} 70. Kf4 {[%clk 0:00:03]}  Bd8 {[%clk 0:00:05]} 71. Kg3 {[%clk 0:00:01]}  Kc7 {[%clk 0:00:06]} 72. Kh3 {[%clk 0:00:01]}  Bf6 {[%clk 0:00:06]} 73. Rc4 {[%clk 0:00:01]}  g5 {[%clk 0:00:06]} 74. hxg5 {[%clk 0:00:01]}  Bxg5 {[%clk 0:00:06]} 75. Rc5 {[%clk 0:00:01]}  Bf6 {[%clk 0:00:07]} 76. Rc2 {[%clk 0:00:01]}  h4 {[%clk 0:00:07]} 77. Kg4 {[%clk 0:00:01]}  Be7 {[%clk 0:00:07]} 78. Kf5 {[%clk 0:00:01]}  Bd6 {[%clk 0:00:06]} 79. Rc3 {[%clk 0:00:01]}  Bg3 {[%clk 0:00:06]} 80. Ke6 {[%clk 0:00:00]}  Kc8 {[%clk 0:00:07]} 0-1


[Site "https://www.chess.com"]

[Event "Titled Tuesday Blitz July 18 Late 2023"]
[White "Velasco, Santiago"]
[Black "Lopez Idarraga, Daniel Eduardo"]
[WhiteFideId "4401328"]
[BlackFideId "4405501"]
[WhiteElo "2573"]
[BlackElo "2300"]
[Result "1/2-1/2"]
[Round "3"]
[TimeControl "180+2"]
[Date "2023.07.18"]
[WhiteClock "0:00:20"]
[BlackClock "0:00:19"]
[Board "159"]

1. d4 {[%clk 0:02:58]}  c6 {[%clk 0:03:00]} 2. Bg5 {[%clk 0:02:56]}  d5 {[%clk 0:03:01]} 3. c3 {[%clk 0:02:54]}  Bf5 {[%clk 0:03:01]} 4. Nf3 {[%clk 0:02:52]}  Nd7 {[%clk 0:03:01]} 5. Nh4 {[%clk 0:02:51]}  Bg4 {[%clk 0:03:00]} 6. h3 {[%clk 0:02:51]}  Bh5 {[%clk 0:03:00]} 7. g4 {[%clk 0:02:51]}  h6 {[%clk 0:02:55]} 8. Bf4 {[%clk 0:02:46]}  e5 {[%clk 0:02:54]} 9. dxe5 {[%clk 0:02:43]}  Qxh4 {[%clk 0:02:52]} 10. Bg3 {[%clk 0:02:42]}  Qe7 {[%clk 0:02:45]} 11. gxh5 {[%clk 0:02:40]}  Nxe5 {[%clk 0:02:45]} 12. Bg2 {[%clk 0:02:40]}  Nf6 {[%clk 0:02:44]} 13. Qb3 {[%clk 0:02:30]}  b6 {[%clk 0:02:38]} 14. Qa4 {[%clk 0:02:20]}  b5 {[%clk 0:02:34]} 15. Qa6 {[%clk 0:02:19]}  Nfd7 {[%clk 0:02:05]} 16. O-O {[%clk 0:02:16]}  Qc5 {[%clk 0:02:04]} 17. a4 {[%clk 0:02:06]}  b4 {[%clk 0:01:59]} 18. Rc1 {[%clk 0:01:44]}  Qb6 {[%clk 0:01:57]} 19. Qxb6 {[%clk 0:01:41]}  axb6 {[%clk 0:01:56]} 20. cxb4 {[%clk 0:01:33]}  Bxb4 {[%clk 0:01:56]} 21. Kh2 {[%clk 0:01:23]}  O-O {[%clk 0:01:51]} 22. f4 {[%clk 0:01:22]}  Nc4 {[%clk 0:01:49]} 23. b3 {[%clk 0:01:23]}  Na5 {[%clk 0:01:47]} 24. e4 {[%clk 0:01:14]}  dxe4 {[%clk 0:01:46]} 25. Bxe4 {[%clk 0:01:11]}  Nxb3 {[%clk 0:01:43]} 26. Rc4 {[%clk 0:01:04]}  c5 {[%clk 0:01:28]} 27. Bxa8 {[%clk 0:01:02]}  Nxa1 {[%clk 0:01:28]} 28. Bc6 {[%clk 0:00:53]}  Nf6 {[%clk 0:01:25]} 29. f5 {[%clk 0:00:51]}  Nb3 {[%clk 0:01:21]} 30. Bd6 {[%clk 0:00:27]}  Rd8 {[%clk 0:01:18]} 31. Be7 {[%clk 0:00:27]}  Rd1 {[%clk 0:01:18]} 32. Bxf6 {[%clk 0:00:26]}  Rxb1 {[%clk 0:01:18]} 33. Be5 {[%clk 0:00:19]}  Na5 {[%clk 0:01:16]} 34. Rg4 {[%clk 0:00:18]}  Nxc6 {[%clk 0:01:14]} 35. Bxg7 {[%clk 0:00:18]}  Kh7 {[%clk 0:01:07]} 36. Bf6 {[%clk 0:00:19]}  Bc3 {[%clk 0:00:26]} 37. Rg7+ {[%clk 0:00:19]}  Kh8 {[%clk 0:00:26]} 38. Bxc3 {[%clk 0:00:19]}  Nd4 {[%clk 0:00:27]} 39. Rxf7 {[%clk 0:00:19]}  Rb3 {[%clk 0:00:21]} 40. Bxd4+ {[%clk 0:00:19]}  cxd4 {[%clk 0:00:22]} 41. Rd7 {[%clk 0:00:20]}  Rb4 {[%clk 0:00:23]} 42. f6 {[%clk 0:00:20]}  Kg8 {[%clk 0:00:23]} 43. Kg3 {[%clk 0:00:20]}  Rxa4 {[%clk 0:00:22]} 44. Kf4 {[%clk 0:00:20]}  Ra5 {[%clk 0:00:20]} 45. Rxd4 {[%clk 0:00:19]}  Rxh5 {[%clk 0:00:20]} 46. Rd6 {[%clk 0:00:19]}  Rxh3 {[%clk 0:00:19]} 47. Kf5 {[%clk 0:00:19]}  Kf7 {[%clk 0:00:18]} 48. Rxb6 {[%clk 0:00:19]}  Rf3+ {[%clk 0:00:17]} 49. Ke5 {[%clk 0:00:19]}  Re3+ {[%clk 0:00:17]} 50. Kf5 {[%clk 0:00:20]}  Rf3+ {[%clk 0:00:18]} 51. Ke5 {[%clk 0:00:20]}  Re3+ {[%clk 0:00:18]} 52. Kf5 {[%clk 0:00:20]}  Rf3+ {[%clk 0:00:19]} 1/2-1/2


[Site "https://www.chess.com"]

[Event "Titled Tuesday Blitz July 18 Late 2023"]
[White "Tomaszewski, Kacper"]
[Black "Zampronha, Wladimir Camilo"]
[WhiteFideId "1127373"]
[BlackFideId "2103087"]
[WhiteElo "2472"]
[BlackElo "2267"]
[Result "1-0"]
[Round "3"]
[TimeControl "180+2"]
[Date "2023.07.18"]
[WhiteClock "0:00:16"]
[BlackClock "0:00:00"]
[Board "163"]

1. d4 {[%clk 0:03:00]}  Nf6 {[%clk 0:02:58]} 2. Nf3 {[%clk 0:03:00]}  e6 {[%clk 0:02:58]} 3. Bf4 {[%clk 0:02:59]}  d5 {[%clk 0:02:57]} 4. e3 {[%clk 0:02:58]}  c5 {[%clk 0:02:57]} 5. c3 {[%clk 0:02:58]}  Nc6 {[%clk 0:02:56]} 6. Bd3 {[%clk 0:02:53]}  Bd6 {[%clk 0:02:56]} 7. Bg3 {[%clk 0:02:52]}  O-O {[%clk 0:02:55]} 8. Nbd2 {[%clk 0:02:52]}  Qe7 {[%clk 0:02:55]} 9. Qe2 {[%clk 0:02:47]}  e5 {[%clk 0:02:54]} 10. dxe5 {[%clk 0:02:41]}  Nxe5 {[%clk 0:02:55]} 11. Nxe5 {[%clk 0:02:41]}  Bxe5 {[%clk 0:02:56]} 12. Nf3 {[%clk 0:02:41]}  Bxg3 {[%clk 0:02:53]} 13. hxg3 {[%clk 0:02:40]}  Bg4 {[%clk 0:02:43]} 14. O-O-O {[%clk 0:02:30]}  b5 {[%clk 0:02:42]} 15. Rh4 {[%clk 0:02:17]}  Bxf3 {[%clk 0:02:31]} 16. gxf3 {[%clk 0:02:14]}  b4 {[%clk 0:02:31]} 17. cxb4 {[%clk 0:02:12]}  cxb4 {[%clk 0:02:28]} 18. Kb1 {[%clk 0:02:12]}  Rac8 {[%clk 0:02:01]} 19. Rdh1 {[%clk 0:02:10]}  h6 {[%clk 0:01:58]} 20. g4 {[%clk 0:02:08]}  Nh7 {[%clk 0:01:44]} 21. f4 {[%clk 0:02:08]}  Rc6 {[%clk 0:01:11]} 22. g5 {[%clk 0:02:06]}  Rfc8 {[%clk 0:01:09]} 23. Bf5 {[%clk 0:01:42]}  a5 {[%clk 0:01:02]} 24. Qd3 {[%clk 0:01:28]}  Nf8 {[%clk 0:00:57]} 25. Bxc8 {[%clk 0:01:21]}  Rxc8 {[%clk 0:00:58]} 26. gxh6 {[%clk 0:01:20]}  g6 {[%clk 0:00:57]} 27. h7+ {[%clk 0:01:20]}  Kh8 {[%clk 0:00:57]} 28. Qd4+ {[%clk 0:01:15]}  f6 {[%clk 0:00:57]} 29. Qxd5 {[%clk 0:01:13]}  Ne6 {[%clk 0:00:55]} 30. f5 {[%clk 0:00:57]}  Qc7 {[%clk 0:00:44]} 31. Qd2 {[%clk 0:00:38]}  gxf5 {[%clk 0:00:39]} 32. Rc1 {[%clk 0:00:37]}  Nc5 {[%clk 0:00:29]} 33. Rhc4 {[%clk 0:00:33]}  Ne4 {[%clk 0:00:06]} 34. Rxc7 {[%clk 0:00:16]}  Nxd2+ {[%clk 0:00:03]} 35. Ka1 {[%clk 0:00:16]}  Rxc7 {[%clk 0:00:00]} 36. Rxc7 {[%clk 0:00:16]} 1-0


[Site "https://www.chess.com"]

[Event "Titled Tuesday Blitz July 18 Late 2023"]
[White "Broca Jimenez, Fernando"]
[Black "Bobkov, Vadim"]
[WhiteFideId "5104742"]
[BlackFideId "34110876"]
[WhiteElo "2253"]
[BlackElo "2464"]
[Result "1-0"]
[Round "3"]
[TimeControl "180+2"]
[Date "2023.07.18"]
[WhiteClock "0:01:11"]
[BlackClock "0:00:00"]
[Board "165"]

1. e4 {[%clk 0:02:57]}  c5 {[%clk 0:03:00]} 2. c3 {[%clk 0:02:56]}  g6 {[%clk 0:02:57]} 3. d4 {[%clk 0:02:56]}  cxd4 {[%clk 0:02:56]} 4. cxd4 {[%clk 0:02:57]}  d5 {[%clk 0:02:56]} 5. e5 {[%clk 0:02:56]}  a6 {[%clk 0:02:55]} 6. Nf3 {[%clk 0:02:56]}  Nc6 {[%clk 0:02:52]} 7. Nc3 {[%clk 0:02:57]}  Bg7 {[%clk 0:02:50]} 8. Bd3 {[%clk 0:02:53]}  Bg4 {[%clk 0:02:47]} 9. Be3 {[%clk 0:02:54]}  e6 {[%clk 0:02:39]} 10. h3 {[%clk 0:02:53]}  Bxf3 {[%clk 0:02:38]} 11. Qxf3 {[%clk 0:02:53]}  f6 {[%clk 0:02:16]} 12. exf6 {[%clk 0:02:36]}  Nxf6 {[%clk 0:02:16]} 13. O-O {[%clk 0:02:01]}  O-O {[%clk 0:02:15]} 14. Qe2 {[%clk 0:01:54]}  Qd6 {[%clk 0:02:09]} 15. Rac1 {[%clk 0:01:50]}  Nh5 {[%clk 0:02:01]} 16. Qg4 {[%clk 0:01:40]}  Rae8 {[%clk 0:01:01]} 17. Rcd1 {[%clk 0:01:34]}  Nf4 {[%clk 0:00:29]} 18. Bb1 {[%clk 0:01:19]}  e5 {[%clk 0:00:23]} 19. dxe5 {[%clk 0:01:14]}  Nxe5 {[%clk 0:00:00]} 20. Bxf4 {[%clk 0:01:11]} 1-0


[Site "https://www.chess.com"]